fUST/lending_fUST_20251010
["ID","MTS","AMOUNT","RATE_DAILY","PERIOD"]
[390451354,1760050242279,-500.0,0.00016438,2]
[390451356,1760050242289,-500.0,0.00016438,2]
[390451358,1760050242298,-500.0,0.00016438,2]
[390451360,1760050242308,-500.0,0.00016438,2]
[390451362,1760050242317,-1544.56,0.00016438,2]
[390451364,1760050242327,-535.77,0.00016438,2]
[390451366,1760050242336,-500.0,0.00016438,2]
[390451368,1760050242346,-500.0,0.00016438,2]
[390451370,1760050242355,-500.0,0.00016438,2]
[390451372,1760050242364,-1037.27,0.00016438,2]
[390451374,1760050242373,-500.0,0.00016438,2]
[390451376,1760050242383,-500.0,0.00016438,2]
[390451378,1760050242392,-500.0,0.00016438,2]
[390451380,1760050242402,-603.9,0.00016438,2]
[390451382,1760050242412,-500.0,0.00016438,2]
[390451384,1760050242421,-500.0,0.00016438,2]
[390451386,1760050242432,-500.0,0.00016438,2]
[390451388,1760050242441,-500.0,0.00016438,2]
[390451390,1760050242450,-500.0,0.00016438,2]
[390451392,1760050242460,-500.0,0.00016438,2]
[390451394,1760050242469,-268.900589,0.00016438,2]
[390451396,1760050242479,-500.0,0.00016438,2]
[390451399,1760050242490,-322.5145401,0.00016438,2]
[390451401,1760050242501,-500.0,0.00016438,2]
[390451402,1760050242511,-500.0,0.00016438,2]
[390451405,1760050242520,-500.0,0.00016438,2]
[390451407,1760050242531,-480.5527544,0.00016438,2]
[390451409,1760050242540,-500.0,0.00016438,2]
[390451411,1760050242549,-500.0,0.00016438,2]
[390451413,1760050242559,-500.0,0.00016438,2]
[390451415,1760050242570,-500.0,0.00016438,2]
[390451417,1760050242580,-500.0,0.00016438,2]
[390451419,1760050242590,-500.0,0.00016438,2]
[390451421,1760050242600,-500.0,0.00016438,2]
[390451423,1760050242610,-500.0,0.00016438,2]
[390451425,1760050242620,-500.0,0.00016438,2]
[390451427,1760050242629,-500.0,0.00016438,2]
[390451429,1760050242639,-500.0,0.00016438,2]
[390451431,1760050242649,-500.0,0.00016438,2]
[390451433,1760050242659,-500.0,0.00016438,2]
[390451435,1760050242668,-500.0,0.00016438,2]
[390451437,1760050242678,-500.0,0.00016438,2]
[390451439,1760050242687,-500.0,0.00016438,2]
[390451441,1760050242697,-500.0,0.00016438,2]
[390451443,1760050242706,-500.0,0.00016438,2]
[390451445,1760050242715,-903.7,0.00016438,2]
[390451447,1760050242727,-500.0,0.00016438,2]
[390451449,1760050242736,-519.79,0.00016438,2]
[390451451,1760050242746,-500.0,0.00016438,2]
[390451453,1760050242755,-500.0,0.00016438,2]
[390451455,1760050242765,-4698.26,0.00016438,2]
[390451457,1760050242774,-500.0,0.00016438,2]
[390451459,1760050242783,-500.0,0.00016438,2]
[390451461,1760050242794,-500.0,0.00016438,2]
[390451463,1760050242803,-500.0,0.00016438,2]
[390451465,1760050242814,-500.0,0.00016438,2]
[390451467,1760050242824,-500.0,0.00016438,2]
[390451469,1760050242834,-836.7,0.00016438,2]
[390451472,1760050242844,-3522.03,0.00016438,2]
[390451473,1760050242854,-500.0,0.00016438,2]
[390451476,1760050242864,-500.0,0.00016438,2]
[390451478,1760050242874,-500.0,0.00016438,2]
[390451480,1760050242883,-500.0,0.00016438,2]
[390451482,1760050242892,-500.0,0.00016438,2]
[390451484,1760050242902,-500.0,0.00016438,2]
[390451486,1760050242911,-500.0,0.00016438,2]
[390451488,1760050242922,-570.81,0.00016438,2]
[390451490,1760050242932,-500.0,0.00016438,2]
[390451492,1760050242942,-500.0,0.00016438,2]
[390451494,1760050242952,-500.0,0.00016438,2]
[390451496,1760050242962,-500.0,0.00016438,2]
[390451498,1760050242971,-500.0,0.00016438,2]
[390451500,1760050242981,-500.0,0.00016438,2]
[390451502,1760050242991,-500.0,0.00016438,2]
[390451504,1760050243001,-500.0,0.00016438,2]
[390451506,1760050243011,-300.0,0.00016438,2]
[390451508,1760050243022,-620.5,0.00016438,2]
[390451510,1760050243032,-500.0,0.00016438,2]
[390451512,1760050243042,-4351.98,0.00016438,2]
[390451514,1760050243052,-500.0,0.00016438,2]
[390451516,1760050243061,-1395.04,0.00016438,2]
[390451518,1760050243072,-500.0,0.00016438,2]
[390451520,1760050243082,-1585.05,0.00016438,2]
[390451522,1760050243092,-500.0,0.00016438,2]
[390451524,1760050243102,-500.0,0.00016438,2]
[390451526,1760050243111,-515.62926532,0.00016438,2]
[390451528,1760050243124,-500.0,0.00016438,2]
[390451531,1760050243135,-500.0,0.00016438,2]
[390451533,1760050243144,-973.74,0.00016438,2]
[390451535,1760050243154,-500.0,0.00016438,2]
[390451537,1760050243163,-500.0,0.00016438,2]
[390451539,1760050243173,-671.62,0.00016438,2]
[390451541,1760050243184,-500.0,0.00016438,2]
[390451543,1760050243193,-1880.27,0.00016438,2]
[390451545,1760050243205,-884.55,0.00016438,2]
[390451547,1760050243214,-500.0,0.00016438,2]
[390451549,1760050243224,-864.93,0.00016438,2]
[390451551,1760050243234,-500.0,0.00016438,2]
[390451553,1760050243243,-151.21,0.00016438,2]
[390451555,1760050243253,-500.0,0.00016438,2]
[390451557,1760050243262,-500.0,0.00016438,2]
[390451559,1760050243272,-500.0,0.00016438,2]
[390451561,1760050243282,-500.0,0.00016438,2]
[390451563,1760050243291,-713.39,0.00016438,2]
[390451565,1760050243301,-500.0,0.00016438,2]
[390451567,1760050243310,-563.85,0.00016438,2]
[390451569,1760050243320,-500.0,0.00016438,2]
[390451570,1760050243330,-695.48,0.00016438,2]
[390451571,1760050243340,-500.0,0.00016438,2]
[390451572,1760050243349,-500.0,0.00016438,2]
[390451573,1760050243359,-500.0,0.00016438,2]
[390451574,1760050243368,-610.16,0.00016438,2]
[390451575,1760050243377,-500.0,0.00016438,2]
[390451576,1760050243386,-500.0,0.00016438,2]
[390451577,1760050243395,-866.64,0.00016438,2]
[390451578,1760050243404,-500.0,0.00016438,2]
[390451579,1760050243414,-500.0,0.00016438,2]
[390451580,1760050243423,-500.0,0.00016438,2]
[390451581,1760050243433,-500.0,0.00016438,2]
[390451582,1760050243442,-644.2,0.00016438,2]
[390451583,1760050243451,-500.0,0.00016438,2]
[390451584,1760050243461,-500.0,0.00016438,2]
[390451585,1760050243470,-500.0,0.00016438,2]
[390451586,1760050243479,-1856.93,0.00016438,2]
[390451587,1760050243490,-500.0,0.00016438,2]
[390451588,1760050243501,-500.0,0.00016438,2]
[390451589,1760050243510,-526.12,0.00016438,2]
[390451590,1760050243519,-500.0,0.00016438,2]
[390451591,1760050243529,-500.0,0.00016438,2]
[390451592,1760050243538,-500.0,0.00016438,2]
[390451593,1760050243547,-500.0,0.00016438,2]
[390451595,1760050243556,-500.0,0.00016438,2]
[390451597,1760050243566,-500.0,0.00016438,2]
[390451599,1760050243575,-3605.9,0.00016438,2]
[390451601,1760050243584,-1000.0,0.00016438,2]
[390451603,1760050243593,-500.0,0.00016473,2]
[390451605,1760050243603,-500.0,0.00016473,2]
[390451607,1760050243612,-500.0,0.00016473,2]
[390451609,1760050243622,-500.0,0.00016612,2]
[390451611,1760050243631,-398.05955343,0.00016711,2]
[390451613,1760050243641,-500.0,0.00016711,2]
[390451615,1760050243651,-500.0,0.00016711,2]
[390451617,1760050243660,-628.1366469,0.00016711,2]
[390451619,1760050243669,-500.0,0.00016711,2]
[390451621,1760050243679,-500.0,0.00016711,2]
[390451623,1760050243688,-500.0,0.00016711,2]
[390451625,1760050243698,-500.0,0.00016711,2]
[390451627,1760050243708,-1808.75,0.00016711,2]
[390451629,1760050243717,-817.59,0.00016711,2]
[390451631,1760050243728,-2471.52,0.00016711,2]
[390451633,1760050243737,-500.0,0.00016711,2]
[390451635,1760050243747,-500.0,0.00016711,2]
[390451637,1760050243756,-577.68,0.00016711,2]
[390451639,1760050243766,-500.0,0.00016711,2]
[390451642,1760050243776,-500.0,0.00016711,2]
[390451660,1760050243923,-2183.13,0.00016711,2]
[390451664,1760050243960,-493.46960098,0.00016711,2]
[390451666,1760050243970,-500.0,0.00016712,2]
[390451668,1760050243980,-500.0,0.00016712,2]
[390451670,1760050243990,-500.0,0.00016712,2]
[390451672,1760050244001,-500.0,0.00016712,2]
[390451674,1760050244010,-500.0,0.00016712,2]
[390451676,1760050244020,-520.0,0.00016712,3]
[390451678,1760050244031,-500.0,0.00016712,2]
[390451680,1760050244040,-500.0,0.00016712,2]
[390451682,1760050244049,-458.91762524,0.00016712,2]
[390451684,1760050244059,-500.0,0.00016712,2]
[390451686,1760050244069,-224.22,0.00016712,2]
[390451688,1760050244079,-500.0,0.00016712,2]
[390451690,1760050244088,-500.0,0.00016712,2]
[390451692,1760050244098,-500.0,0.00016712,2]
[390451694,1760050244107,-500.0,0.00016712,2]
[390451696,1760050244118,-553.40176351,0.00016712,2]
[390451698,1760050244127,-500.0,0.00016712,2]
[390451700,1760050244136,-350.2593454,0.00016712,2]
[390451702,1760050244145,-500.0,0.00016712,2]
[390451704,1760050244154,-500.0,0.00016712,2]
[390451706,1760050244163,-500.84948752,0.00016712,2]
[390451708,1760050244171,-500.0,0.00016712,2]
[390451710,1760050244181,-500.0,0.00016712,2]
[390451712,1760050244190,-203.84,0.00016712,2]
[390451714,1760050244199,-500.0,0.00016712,2]
[390451716,1760050244208,-500.0,0.00016712,2]
[390451718,1760050244220,-500.0,0.00016712,2]
[390451719,1760050244230,-500.0,0.00016712,2]
[390451721,1760050244239,-500.0,0.00016712,2]
[390451723,1760050244248,-500.0,0.00016712,2]
[390451725,1760050244257,-500.0,0.00016712,2]
[390451727,1760050244266,-500.0,0.00016712,2]
[390451729,1760050244275,-525.75,0.00016712,2]
[390451731,1760050244284,-500.0,0.00016712,2]
[390451733,1760050244293,-151.0,0.00016712,2]
[390451735,1760050244303,-608.78,0.00016712,2]
[390451737,1760050244312,-151.0,0.00016712,2]
[390451739,1760050244321,-500.0,0.00016712,2]
[390451741,1760050244330,-202.18,0.00016712,2]
[390451743,1760050244339,-1334.91,0.00016712,2]
[390451745,1760050244349,-459.14,0.00016712,2]
[390451747,1760050244359,-500.0,0.00016712,2]
[390451749,1760050244368,-500.0,0.00016712,2]
[390451751,1760050244377,-1551.24,0.00016712,2]
[390451753,1760050244387,-500.0,0.00016712,2]
[390451755,1760050244396,-151.0,0.00016712,2]
[390451757,1760050244405,-500.0,0.00016712,2]
[390451759,1760050244414,-841.4,0.00016712,2]
[390451761,1760050244423,-500.0,0.00016712,2]
[390451763,1760050244432,-180.284543,0.00016712,2]
[390451765,1760050244441,-500.0,0.00016712,2]
[390451767,1760050244450,-500.0,0.00016712,2]
[390451769,1760050244459,-604.0,0.00016712,2]
[390451771,1760050244468,-661.32,0.00016712,2]
[390451773,1760050244477,-151.0,0.00016712,2]
[390451775,1760050244487,-151.0,0.00016712,2]
[390451777,1760050244502,-500.0,0.00016712,2]
[390451779,1760050244511,-500.0,0.00016712,2]
[390451781,1760050244521,-500.0,0.00016712,2]
[390451783,1760050244530,-500.0,0.00016712,2]
[390451785,1760050244541,-500.0,0.00016712,2]
[390451787,1760050244550,-264.45,0.00016712,2]
[390451789,1760050244561,-500.0,0.00016712,2]
[390451792,1760050244571,-186.7766,0.00016712,2]
[390451794,1760050244580,-500.0,0.00016712,2]
[390451795,1760050244590,-500.0,0.00016712,2]
[390451798,1760050244600,-501.56581821,0.00016712,2]
[390451799,1760050244610,-500.0,0.00016712,2]
[390451801,1760050244621,-500.0,0.00016712,2]
[390451803,1760050244630,-151.0,0.00016712,2]
[390451805,1760050244640,-500.0,0.00016712,2]
[390451808,1760050244649,-151.0,0.00016712,2]
[390451810,1760050244658,-151.0,0.00016712,2]
[390451812,1760050244667,-500.0,0.00016712,2]
[390451814,1760050244678,-257.753464,0.00016712,2]
[390451815,1760050244687,-500.0,0.00016712,2]
[390451817,1760050244697,-500.0,0.00016712,2]
[390451819,1760050244706,-151.0,0.00016712,2]
[390451821,1760050244715,-635.95,0.00016712,2]
[390451823,1760050244725,-500.0,0.00016712,2]
[390451825,1760050244734,-500.0,0.00016712,2]
[390451829,1760050244743,-500.0,0.00016712,2]
[390451832,1760050244752,-500.0,0.00016712,2]
[390451835,1760050244762,-200.11,0.00016712,2]
[390451838,1760050244771,-500.0,0.00016712,2]
[390451841,1760050244781,-500.0,0.00016712,2]
[390451844,1760050244790,-627.48,0.00016712,2]
[390451846,1760050244800,-500.0,0.00016712,2]
[390451849,1760050244809,-398.05,0.00016712,2]
[390451850,1760050244818,-500.0,0.00016712,2]
[390451852,1760050244828,-500.0,0.00016712,2]
[390451854,1760050244837,-500.0,0.00016712,2]
[390451857,1760050244846,-500.0,0.00016712,2]
[390451858,1760050244856,-185.584062,0.00016712,2]
[390451861,1760050244867,-500.0,0.00016712,2]
[390451863,1760050244877,-728.02,0.00016712,2]
[390451865,1760050244887,-586.39,0.00016712,2]
[390451867,1760050244896,-151.0,0.00016712,2]
[390451869,1760050244906,-151.0,0.00016712,2]
[390451871,1760050244916,-151.0,0.00016712,2]
[390451873,1760050244926,-500.0,0.00016712,2]
[390451874,1760050244935,-500.0,0.00016712,2]
[390451877,1760050244946,-178.096008,0.00016712,2]
[390451879,1760050244956,-1613.37,0.00016712,2]
[390451881,1760050244966,-343.66,0.00016712,2]
[390451882,1760050244975,-500.0,0.00016712,2]
[390451884,1760050244985,-151.0,0.00016712,2]
[390451886,1760050244994,-500.0,0.00016712,2]
[390451888,1760050245003,-500.0,0.00016712,2]
[390451890,1760050245013,-500.0,0.00016712,2]
[390451892,1760050245023,-5515.14,0.00016712,2]
[390451894,1760050245032,-250.98830554,0.00016712,2]
[390451896,1760050245041,-1895.67,0.00016712,2]
[390451898,1760050245050,-500.0,0.00016712,2]
[390451900,1760050245059,-500.0,0.00016712,2]
[390451902,1760050245069,-500.0,0.00016712,2]
[390451904,1760050245078,-159.74,0.00016712,2]
[390451906,1760050245088,-500.0,0.00016712,2]
[390451908,1760050245097,-151.0,0.00016712,2]
[390451910,1760050245107,-2938.23,0.00016712,2]
[390451912,1760050245116,-731.14,0.00016712,2]
[390451914,1760050245125,-264.787041,0.00016712,2]
[390451916,1760050245135,-932.64,0.00016712,2]
[390451918,1760050245144,-151.0,0.00016712,2]
[390451920,1760050245153,-151.0,0.00016712,2]
[390451922,1760050245163,-500.0,0.00016712,2]
[390451924,1760050245172,-500.0,0.00016712,2]
[390451926,1760050245181,-4976.81,0.00016712,2]
[390451928,1760050245191,-500.0,0.00016712,2]
[390451930,1760050245201,-500.0,0.00016712,2]
[390451932,1760050245210,-742.71,0.00016712,2]
[390451934,1760050245219,-613.55,0.00016712,2]
[390451936,1760050245228,-683.93,0.00016712,2]
[390451938,1760050245237,-500.0,0.00016712,2]
[390451940,1760050245247,-500.0,0.00016712,2]
[390451942,1760050245256,-151.0,0.00016712,2]
[390451944,1760050245265,-1544.56,0.00016712,2]
[390451946,1760050245274,-535.77,0.00016712,2]
[390451948,1760050245283,-603.85,0.00016712,2]
[390451950,1760050245292,-1037.27,0.00016712,2]
[390451952,1760050245301,-500.0,0.00016712,2]
[390451954,1760050245310,-603.9,0.00016712,2]
[390451956,1760050245319,-500.0,0.00016712,2]
[390451958,1760050245329,-500.0,0.00016712,2]
[390451960,1760050245338,-151.0,0.00016712,2]
[390451962,1760050245347,-500.0,0.00016712,2]
[390451964,1760050245356,-500.0,0.00016712,2]
[390451968,1760050245365,-500.0,0.00016712,2]
[390451971,1760050245374,-500.0,0.00016712,2]
[390451974,1760050245383,-151.0,0.00016712,2]
[390451977,1760050245392,-500.0,0.00016712,2]
[390451980,1760050245401,-500.0,0.00016712,2]
[390451982,1760050245410,-500.0,0.00016712,2]
[390451984,1760050245419,-500.0,0.00016712,2]
[390451986,1760050245428,-151.0,0.00016712,2]
[390451988,1760050245437,-903.7,0.00016712,2]
[390451990,1760050245446,-500.0,0.00016712,2]
[390451992,1760050245456,-519.79,0.00016712,2]
[390451994,1760050245466,-500.0,0.00016712,2]
[390451996,1760050245475,-151.0,0.00016712,2]
[390451997,1760050245484,-1684.34149121,0.00016712,2]
[390451998,1760050245705,-3013.91850879,0.00016712,2]
[390451999,1760050245715,-500.0,0.00016712,2]
[390452000,1760050245724,-151.0,0.00016712,2]
[390452001,1760050245734,-836.7,0.00016712,2]
[390452002,1760050245743,-3522.03,0.00016712,2]
[390452003,1760050245752,-500.0,0.00016712,2]
[390452004,1760050245762,-500.0,0.00016712,2]
[390452005,1760050245771,-570.81,0.00016712,2]
[390452006,1760050245781,-500.0,0.00016712,2]
[390452007,1760050245790,-332.51501156,0.00016712,2]
[390452009,1760050246242,-500.0,0.00016438,2]
[390452010,1760050246251,-500.0,0.00016438,2]
[390452011,1760050246260,-500.0,0.00016438,2]
[390452012,1760050246270,-500.0,0.00016711,2]
[390452013,1760050246279,-167.48498844,0.00016712,2]
[390452014,1760050246288,-620.5,0.00016712,2]
[390452015,1760050246297,-152.617369,0.00016712,2]
[390452016,1760050246306,-4351.98,0.00016712,2]
[390452017,1760050246315,-1395.04,0.00016712,2]
[390452018,1760050246324,-500.0,0.00016712,2]
[390452019,1760050246333,-1585.05,0.00016712,2]
[390452020,1760050246342,-500.0,0.00016712,2]
[390452021,1760050246352,-973.74,0.00016712,2]
[390452022,1760050246361,-671.62,0.00016712,2]
[390452023,1760050246370,-500.0,0.00016712,2]
[390452024,1760050246380,-1880.27,0.00016712,2]
[390452025,1760050246389,-304.142137,0.00016712,2]
[390452026,1760050246398,-884.55,0.00016712,2]
[390452027,1760050246407,-500.0,0.00016712,2]
[390452028,1760050246417,-304.142137,0.00016712,2]
[390452029,1760050246426,-304.142137,0.00016712,2]
[390452030,1760050246436,-864.93,0.00016712,2]
[390452031,1760050246445,-500.0,0.00016712,2]
[390452032,1760050246454,-304.142137,0.00016712,2]
[390452033,1760050246463,-500.0,0.00016712,2]
[390452034,1760050246472,-500.0,0.00016712,2]
[390452035,1760050246481,-713.39,0.00016712,2]
[390452036,1760050246493,-500.0,0.00016712,2]
[390452037,1760050246504,-563.85,0.00016712,2]
[390452038,1760050246513,-695.48,0.00016712,2]
[390452039,1760050246523,-500.0,0.00016712,2]
[390452040,1760050246534,-500.0,0.00016712,2]
[390452041,1760050246543,-610.16,0.00016712,2]
[390452042,1760050246555,-500.0,0.00016712,2]
[390452043,1760050246566,-866.64,0.00016712,2]
[390452044,1760050246576,-500.0,0.00016712,2]
[390452045,1760050246585,-644.2,0.00016712,2]
[390452046,1760050246594,-500.0,0.00016712,2]
[390452047,1760050246604,-500.0,0.00016712,2]
[390452048,1760050246613,-1856.93,0.00016712,2]
[390452049,1760050246622,-526.12,0.00016712,2]
[390452050,1760050246631,-500.0,0.00016712,2]
[390452051,1760050246640,-500.0,0.00016712,2]
[390452052,1760050246649,-500.0,0.00016712,2]
[390452053,1760050246658,-500.0,0.00016712,2]
[390452054,1760050246667,-1109.43853727,0.00016712,2]
[390452055,1760050246678,-407.69607761,0.00016712,2]
[390452056,1760050247079,-500.0,0.00016438,2]
[390452057,1760050247088,-63.21139385,0.00016438,2]
[390452058,1760050247181,-436.78860615,0.00016438,2]
[390452059,1760050247191,-500.0,0.00016438,2]
[390452060,1760050247201,-169.94,0.00016438,2]
[390452061,1760050247210,-500.0,0.00016438,2]
[390452062,1760050247219,-2088.76538512,0.00016712,2]
[390452063,1760050247228,-170.6,0.00016712,2]
[390452064,1760050247237,-500.0,0.00016712,2]
[390452065,1760050247246,-500.0,0.00016712,2]
[390452066,1760050247255,-500.0,0.00016712,2]
[390452067,1760050247264,-500.0,0.00016712,2]
[390452068,1760050247273,-500.0,0.00016712,2]
[390452069,1760050247282,-500.0,0.00016712,2]
[390452070,1760050247291,-300.0,0.00016766,2]
[390452071,1760050247301,-300.0,0.00016766,2]
[390452072,1760050247311,-300.0,0.00016766,2]
[390452073,1760050247320,-300.0,0.00016766,2]
[390452074,1760050247330,-300.0,0.00016766,2]
[390452075,1760050247339,-300.0,0.00016766,2]
[390452076,1760050247348,-300.0,0.00016766,2]
[390452077,1760050247358,-300.0,0.00016766,2]
[390452078,1760050247367,-300.0,0.00016766,2]
[390452079,1760050247376,-300.0,0.00016766,2]
[390452080,1760050247386,-113.51919001,0.00016766,2]
[390452081,1760050247416,-500.0,0.00016438,2]
[390452082,1760050247425,-500.0,0.00016438,2]
[390452083,1760050247435,-500.0,0.00016712,2]
[390452084,1760050247444,-186.48080999,0.00016766,2]
[390452085,1760050247453,-300.0,0.00016766,2]
[390452086,1760050247463,-300.0,0.00016766,2]
[390452087,1760050247472,-300.0,0.00016766,2]
[390452088,1760050247481,-300.0,0.00016766,2]
[390452089,1760050247494,-600.0,0.00016766,2]
[390452090,1760050247504,-598.32,0.00016886,2]
[390452091,1760050247513,-153.52000039,0.00016954,2]
[390452092,1760050247523,-596.89,0.00016985,2]
[390452093,1760050247532,-500.0,0.00016985,2]
[390452094,1760050247543,-151.0,0.00016985,2]
[390452095,1760050247552,-151.0,0.00016985,2]
[390452096,1760050247562,-817.59,0.00016985,2]
[390452097,1760050247572,-577.68,0.00016985,2]
[390452098,1760050247581,-1432.65839502,0.00016985,2]
[390452099,1760050247593,-750.47160498,0.00016985,2]
[390452101,1760050247602,-500.0,0.00016985,2]
[390452103,1760050247611,-537.81,0.00016986,2]
[390452105,1760050247620,-500.0,0.00016986,2]
[390452107,1760050247629,-500.0,0.00016986,2]
[390452109,1760050247638,-500.0,0.00016986,2]
[390452110,1760050247647,-151.0,0.00016986,2]
[390452112,1760050247656,-500.0,0.00016986,2]
[390452114,1760050247665,-151.0,0.00016986,2]
[390452116,1760050247675,-151.0,0.00016986,2]
[390452118,1760050247684,-151.0,0.00016986,2]
[390452120,1760050247693,-500.0,0.00016986,2]
[390452122,1760050247702,-220.501924,0.00016986,2]
[390452124,1760050247711,-500.0,0.00016986,2]
[390452126,1760050247720,-151.0,0.00016986,2]
[390452128,1760050247730,-500.0,0.00016986,2]
[390452130,1760050247739,-203.86,0.00016986,2]
[390452132,1760050247748,-500.0,0.00016986,2]
[390452134,1760050247758,-500.0,0.00016986,2]
[390452136,1760050247767,-500.0,0.00016986,2]
[390452138,1760050247778,-446.1,0.00016986,2]
[390452140,1760050247787,-501.34274589,0.00016986,2]
[390452142,1760050247797,-1334.91,0.00016986,2]
[390452144,1760050247806,-500.0,0.00016986,2]
[390452146,1760050247816,-500.0,0.00016986,2]
[390452148,1760050247825,-116.35310325,0.00016986,2]
[390452150,1760050247838,-1434.88689675,0.00016986,2]
[390452152,1760050247847,-500.0,0.00016986,2]
[390452154,1760050247857,-841.4,0.00016986,2]
[390452155,1760050247867,-625.31847877,0.00016986,2]
[390452157,1760050247878,-661.32,0.00016986,2]
[390452158,1760050247887,-500.0,0.00016986,2]
[390452160,1760050247897,-293.82,0.00016986,2]
[390452162,1760050247907,-500.0,0.00016986,2]
[390452164,1760050247916,-500.0,0.00016986,2]
[390452165,1760050247925,-406.28,0.00016986,2]
[390452166,1760050247935,-500.0,0.00016986,2]
[390452167,1760050247945,-500.0,0.00016986,2]
[390452168,1760050247954,-500.0,0.00016986,2]
[390452169,1760050247964,-500.0,0.00016986,2]
[390452170,1760050247973,-500.0,0.00016986,2]
[390452171,1760050247983,-583.55,0.00016986,2]
[390452172,1760050247993,-500.0,0.00016986,2]
[390452173,1760050248002,-500.0,0.00016986,2]
[390452174,1760050248012,-500.0,0.00016986,2]
[390452175,1760050248022,-500.0,0.00016986,2]
[390452176,1760050248032,-500.0,0.00016986,2]
[390452177,1760050248042,-609.91,0.00016986,2]
[390452178,1760050248052,-500.0,0.00016986,2]
[390452179,1760050248062,-199.98,0.00016986,2]
[390452180,1760050248071,-500.0,0.00016986,2]
[390452181,1760050248081,-1613.37,0.00016986,2]
[390452182,1760050248091,-500.0,0.00016986,2]
[390452183,1760050248102,-4789.34804679,0.00016986,2]
[390452185,1760050248113,-725.79195321,0.00016986,2]
[390452187,1760050248124,-1895.67,0.00016986,2]
[390452189,1760050248133,-500.0,0.00016986,2]
[390452190,1760050248142,-500.0,0.00016986,2]
[390452191,1760050248151,-500.0,0.00016986,2]
[390452192,1760050248160,-500.0,0.00016986,2]
[390452194,1760050248170,-2938.23,0.00016986,2]
[390452196,1760050248179,-731.14,0.00016986,2]
[390452198,1760050248190,-932.64,0.00016986,2]
[390452199,1760050248201,-500.0,0.00016986,2]
[390452200,1760050248210,-352.69,0.00016986,2]
[390452201,1760050248219,-4976.81,0.00016986,2]
[390452202,1760050248228,-500.0,0.00016986,2]
[390452203,1760050248238,-742.71,0.00016986,2]
[390452204,1760050248248,-683.93,0.00016986,2]
[390452205,1760050248257,-500.0,0.00016986,2]
[390452206,1760050248267,-1544.56,0.00016986,2]
[390452207,1760050248276,-535.77,0.00016986,2]
[390452208,1760050248286,-1037.27,0.00016986,2]
[390452210,1760050248296,-500.0,0.00016986,2]
[390452212,1760050248305,-603.9,0.00016986,2]
[390452214,1760050248315,-500.0,0.00016986,2]
[390452216,1760050248324,-500.0,0.00016986,2]
[390452217,1760050248334,-500.0,0.00016986,2]
[390452219,1760050248343,-500.0,0.00016986,2]
[390452221,1760050248353,-500.0,0.00016986,2]
[390452223,1760050248362,-500.0,0.00016986,2]
[390452225,1760050248373,-903.7,0.00016986,2]